bitfinex-derivatives/quotes_ETHF0:USTF0_20241231
["timestamp","ask_amount","ask_price","bid_price","bid_amount"]
[1735670028246,3.2078,3362.2,3361.6,3.2078]
[1735670028453,0.29787,3362.0,3361.9,0.29786]
[1735670028842,3.2078,3362.2,3361.7,1.79814344]
[1735670029049,3.94013625,3362.4,3361.7,1.79814344]
[1735670029250,4.23797625,3362.4,3362.3,0.29784]
[1735670029746,3.94013625,3362.4,3361.8,0.8535]
[1735670030055,1.195,3362.4,3361.8,0.4254]
[1735670030355,0.29787,3362.1,3362.0,0.29786]
[1735670031251,0.29786,3362.2,3362.1,0.29785]
[1735670031644,0.4504,3362.4,3362.0,1.79814344]
[1735670031842,0.74823,3362.4,3362.3,0.29784]
[1735670034049,0.4504,3362.4,3362.3,0.29784]
[1735670034454,0.74823,3362.4,3362.3,0.29784]
[1735670034656,3.50562,3362.6,3362.5,0.29782]
[1735670035369,0.29784,3362.4,3362.3,0.29783]
[1735670041456,3.2078,3362.6,3362.5,0.29782]
[1735670041754,3.50562,3362.6,3362.5,0.29782]
[1735670044358,3.2078,3362.6,3362.2,4.61926505]
[1735670044676,0.29784,3362.3,3362.2,4.61926505]
[1735670044863,0.29784,3362.5,3362.4,0.29782]
[1735670045160,3.2078,3362.6,3362.5,0.29782]
[1735670045355,3.48973625,3362.8,3362.7,0.29781]
[1735670045557,3.78753625,3362.8,3362.7,0.29781]
[1735670045756,0.29782,3362.6,3362.5,0.72562]
[1735670046360,3.48973625,3362.8,3362.2,0.4335]
[1735670046561,0.436,3362.9,3362.6,4.61926505]
[1735670046757,3.50561,3362.7,3362.6,4.61926505]
[1735670047454,3.50561,3362.7,3362.6,4.91708505]
[1735670047655,0.436,3362.9,3362.8,0.2978]
[1735670047850,0.29777,3363.2,3363.1,0.29777]
[1735670048055,3.78749625,3363.3,3363.2,0.29776]
[1735670048254,0.29776,3363.3,3363.2,0.29776]
[1735670049063,0.423,3363.4,3362.8,1.298]
[1735670049362,0.29778,3363.1,3363.0,0.29777]
[1735670051362,0.423,3363.4,3362.9,4.61926505]
[1735670051562,0.29778,3363.1,3363.0,0.29777]
[1735670053863,0.29779,3363.0,3362.9,0.29778]
[1735670054168,0.29777,3363.2,3363.1,0.29776]
[1735670054569,0.29779,3363.0,3362.9,0.29778]
[1735670054865,0.29779,3362.9,3362.8,1.59579]
[1735670055064,3.93242833,3363.4,3362.9,0.29778]
[1735670055065,0.29778,3363.0,3362.9,0.29778]
[1735670055261,3.93242833,3363.4,3362.8,1.298]
[1735670055568,0.29775,3363.3,3363.2,0.29775]
[1735670055771,3.80717833,3363.3,3363.2,0.29775]
[1735670056361,3.50942833,3363.3,3363.2,0.29775]
[1735670057164,3.80717833,3363.3,3363.2,0.29775]
[1735670057368,3.50942833,3363.3,3363.2,0.29775]
[1735670057764,0.29774,3363.5,3363.4,0.29774]
[1735670058165,7.47696833,3363.6,3363.5,0.29774]
[1735670058462,6.71722833,3363.6,3363.0,2.24054344]
[1735670058668,3.50942833,3363.6,3363.5,0.29774]
[1735670059466,3.50942833,3363.7,3363.6,0.29773]
[1735670060273,3.80714833,3363.7,3363.6,0.29773]
[1735670060578,0.29771,3363.8,3363.4,0.4581]
[1735670060872,0.906,3364.0,3363.8,0.2977]
[1735670060873,0.29771,3363.9,3363.8,0.2977]
[1735670061072,0.29772,3363.8,3363.7,0.29771]
[1735670061469,3.2078,3364.1,3363.6,1.79814344]
[1735670061768,0.29769,3364.1,3364.0,0.29769]
[1735670062681,0.29771,3364.0,3363.9,0.2977]
[1735670063968,1.20498,3364.3,3364.2,0.29767]
[1735670063969,0.75847,3364.3,3364.2,0.29767]
[1735670065064,0.75846,3364.3,3364.2,0.29767]
[1735670065669,0.29766,3364.3,3364.2,0.29767]
[1735670065972,0.75016,3364.3,3364.2,0.29767]
[1735670067078,0.4525,3364.3,3363.7,0.4476]
[1735670067276,0.29771,3363.9,3363.8,1.5937]
[1735670067677,0.29771,3363.9,3363.8,1.296]
[1735670067875,0.29773,3363.6,3363.5,0.29773]
[1735670068082,1.18435,3364.0,3363.4,5.91526505]
[1735670068274,1.18435,3364.0,3363.2,0.4297]
[1735670068275,0.29774,3363.5,3363.2,0.4297]
[1735670068480,0.76405,3363.4,3363.3,0.29775]
[1735670070680,0.29776,3363.3,3363.2,0.29775]
[1735670070881,0.76405,3363.4,3363.3,0.29775]
[1735670071485,2.33102721,3364.1,3363.2,0.74441]
[1735670071670,0.2977,3364.0,3363.9,0.29769]
[1735670071884,2.33102721,3364.1,3364.0,0.29769]
[1735670072179,2.62870721,3364.1,3364.0,0.29769]
[1735670072476,2.33102721,3364.1,3363.6,3.2078]
[1735670072683,0.29772,3363.8,3363.7,0.29772]
[1735670072875,0.4222,3364.0,3363.3,3.09414344]
[1735670073077,0.29773,3363.7,3363.6,0.29772]
[1735670073377,0.4215,3363.9,3363.3,7.71340849]
[1735670073587,0.29774,3363.4,3363.3,6.21301505]
[1735670073784,0.29774,3363.4,3363.3,5.91526505]
[1735670074083,3.50554,3363.4,3363.3,4.61926505]
[1735670074275,3.50554,3363.4,3362.6,3.6515]
[1735670074276,0.29778,3363.0,3362.9,4.61926505]
[1735670074676,0.29778,3363.0,3362.9,4.91705505]
[1735670074885,0.8642,3363.3,3362.9,4.61926505]
[1735670075084,0.29777,3363.2,3363.1,0.29776]
[1735670075783,0.29778,3363.1,3363.0,0.29777]
[1735670076381,1.16196,3363.3,3363.2,0.29776]
[1735670076784,0.8642,3363.3,3363.2,0.29776]
[1735670076983,0.4516,3363.6,3363.0,2.24674344]
[1735670077185,0.74933,3363.6,3363.5,0.29774]
[1735670077687,0.74933,3363.6,3363.5,0.02306959]
[1735670082889,0.29781,3362.7,3362.6,3.2078]
[1735670085689,1.3279,3363.0,3362.3,2.09598344]
[1735670085889,0.29783,3362.5,3362.3,2.09598344]
[1735670086483,1.3279,3363.0,3362.3,1.79814344]
[1735670086685,0.2978,3362.9,3362.7,1.79814344]
[1735670086993,0.2978,3362.8,3362.7,1.79814344]
[1735670087690,0.29781,3362.7,3362.4,0.29783]
[1735670087891,0.29781,3362.7,3362.5,0.29782]
[1735670088087,1.3279,3363.0,3362.3,3.09414344]
[1735670088288,0.74448,3362.9,3362.3,3.09414344]
[1735670088488,0.29783,3362.5,3362.3,3.39198344]
[1735670088789,0.74448,3362.9,3362.3,3.09414344]
[1735670089179,0.29783,3362.4,3362.3,1.296]
[1735670089686,0.29783,3362.4,3362.3,1.59384]
[1735670089887,0.29783,3362.4,3362.3,1.296]
[1735670091587,0.29785,3362.2,3362.1,0.449]
[1735670091791,0.29785,3362.1,3362.0,1.79814344]
[1735670092193,0.29784,3362.0,3361.9,4.61926505]
[1735670093091,0.29786,3361.8,3361.7,4.61926505]
[1735670094698,3.2078,3361.9,3361.1,0.01448584]
[1735670094888,0.29791,3361.2,3361.1,0.01448584]
[1735670096624,2.94507983,3361.4,3360.1,10.33772888]
[1735670096899,0.298,3360.2,3360.1,10.33772888]
[1735670097800,0.29799,3360.3,3360.1,10.63573888]
[1735670098194,0.29799,3360.3,3360.1,10.33772888]
[1735670098399,0.298,3360.2,3360.1,10.33772888]
[1735670099001,0.29799,3360.3,3360.1,3.73094]
[1735670100400,0.29799,3360.3,3360.1,3.43294]
[1735670100601,0.8866,3360.7,3360.1,3.43294]
[1735670100799,0.298,3360.3,3360.1,3.73094]
[1735670101319,0.29799,3360.4,3360.2,2.09614344]
[1735670101900,0.8866,3360.7,3360.1,3.43294]
[1735670102096,0.29799,3360.3,3360.1,3.73095]
[1735670102297,0.8866,3360.7,3360.2,1.79814344]
[1735670102298,0.4364,3360.7,3360.2,1.79814344]
[1735670102597,0.2979,3361.4,3361.2,0.29791]
[1735670103101,0.9113,3361.7,3361.1,3.2078]
[1735670103300,0.9113,3361.7,3360.9,1.79814344]
[1735670103301,0.29788,3361.6,3361.2,3.50571]
[1735670103502,0.29788,3361.6,3361.5,0.29788]
[1735670103697,0.4504,3361.7,3361.6,0.29787]
[1735670103895,2.33102721,3361.8,3361.7,0.29787]
[1735670104096,2.33102721,3361.8,3361.7,2.09601344]
[1735670104302,0.29784,3362.0,3361.7,1.79814344]
[1735670104602,0.29784,3362.0,3361.9,0.29785]
[1735670105396,3.6365,3362.4,3361.7,1.79814344]
[1735670105801,0.29781,3362.3,3361.8,0.29785]
[1735670106000,0.29785,3362.0,3361.8,0.29785]
[1735670106601,0.29785,3362.0,3361.9,0.29785]
[1735670106805,0.29785,3362.0,3361.7,1.79814344]
[1735670106806,0.29785,3361.9,3361.8,0.29785]
[1735670107102,0.29785,3361.9,3361.8,0.29786]
[1735670107803,0.29784,3362.0,3361.9,0.29785]
[1735670108400,0.4287,3362.4,3361.6,3.2078]
[1735670108601,0.29786,3361.8,3361.7,0.29785]
[1735670110601,0.74457,3362.2,3361.6,3.2078]
[1735670110803,0.29786,3361.8,3361.7,0.29786]
[1735670111902,0.29787,3361.7,3361.6,3.50567]
[1735670112100,5.00594344,3362.1,3361.4,0.4202]
[1735670112298,0.29789,3361.4,3361.3,0.4565]
[1735670114704,0.29786,3361.8,3361.7,0.29786]
[1735670114907,0.29786,3361.8,3361.7,3.2078]
[1735670115102,0.29786,3361.8,3361.3,3.6643]
[1735670115318,0.29789,3361.4,3361.3,3.9622]
[1735670115901,0.29789,3361.4,3361.3,3.6643]
[1735670116108,0.29789,3361.4,3361.3,3.9622]
[1735670116312,0.29787,3361.7,3361.6,0.29787]
[1735670116507,0.29788,3361.6,3361.5,0.29788]
[1735670116812,0.29789,3361.4,3361.3,3.9622]
[1735670120703,0.29789,3361.5,3361.4,0.29788]
[1735670122409,0.29785,3362.0,3361.9,0.29784]
[1735670122603,2.54267344,3362.4,3361.8,0.29785]
[1735670122604,0.29786,3361.9,3361.8,0.29785]
[1735670123510,0.29786,3361.9,3361.7,3.2078]
[1735670123511,0.29786,3361.8,3361.7,3.50566]
[1735670123705,0.29786,3361.8,3361.7,3.2078]
[1735670125516,0.29786,3361.8,3361.7,3.50567]
[1735670126413,0.29786,3361.8,3361.7,3.2078]
[1735670127310,0.2979,3361.4,3361.3,3.2078]
[1735670128416,0.29793,3361.0,3360.9,3.92673]
[1735670128610,0.29793,3361.0,3360.9,3.2078]
[1735670130308,2.68004344,3361.2,3360.2,10.11258888]
[1735670130508,0.29799,3360.3,3360.2,10.11258888]
[1735670130911,2.09613344,3360.3,3360.2,6.90478888]
[1735670131307,2.09613344,3360.3,3360.1,0.22514]
[1735670131308,1.79814344,3360.3,3360.1,0.22514]
[1735670131511,0.298,3360.2,3360.1,0.22514]
[1735670138830,0.298,3360.2,3359.4,3.2078]
[1735670138831,0.29809,3359.2,3359.1,0.4208]
[1735670139032,0.2981,3359.1,3359.0,6.90478888]
[1735670139224,0.74518,3359.4,3358.9,10.11258888]
[1735670139525,0.2981,3359.0,3358.9,10.11258888]
[1735670140933,0.2981,3359.0,3358.9,3.2078]
[1735670141731,0.2981,3359.0,3358.0,2.22424344]
[1735670141732,0.29815,3358.5,3358.4,3.2078]
[1735670144234,0.29817,3358.3,3358.2,0.456]
[1735670145336,0.29819,3358.0,3357.9,3.2078]
[1735670145834,0.29819,3358.0,3357.9,3.506]
[1735670147332,0.4536,3358.3,3358.0,0.29819]
[1735670147633,0.29819,3358.1,3358.0,0.29819]
[1735670147834,0.29819,3358.0,3357.9,3.506]
[1735670149333,0.29819,3358.0,3357.9,3.2078]
[1735670149734,0.29819,3358.0,3357.9,3.506]
[1735670149937,0.29819,3358.0,3357.9,3.2078]
[1735670154039,0.29822,3357.7,3357.6,0.72932]
[1735670155134,2.54365344,3358.0,3357.5,3.2078]
[1735670155339,2.54457344,3357.6,3357.5,3.2078]
[1735670155540,0.74643,3357.6,3357.5,3.2078]
[1735670156141,0.74643,3357.6,3357.5,3.50604]
[1735670156342,0.29823,3357.6,3357.5,3.50604]
[1735670156645,2.25934344,3358.2,3357.5,3.2078]
[1735670156840,0.29822,3357.8,3357.7,0.29821]
[1735670157245,0.29822,3357.7,3357.6,0.75873]
[1735670157743,0.29822,3357.7,3357.6,0.4605]
[1735670157945,0.29823,3357.6,3357.5,3.2078]
[1735670158733,2.09637344,3357.6,3357.5,3.2078]
[1735670160433,0.29826,3357.2,3357.1,3.2078]
[1735670160641,0.29826,3357.2,3357.1,3.50607]
[1735670160839,0.29826,3357.2,3357.1,3.2078]
[1735670161235,0.29826,3357.2,3357.1,3.50607]
[1735670161436,5.00594344,3357.9,3357.1,3.2078]
[1735670161646,1.305,3358.4,3357.5,3.2078]
[1735670161834,0.29818,3358.2,3358.1,0.29818]
[1735670164543,1.79814344,3358.5,3357.9,3.2078]
[1735670164747,0.29815,3358.6,3358.5,0.29814]
[1735670165044,2.03932868,3358.8,3358.3,3.2078]
[1735670165252,2.78465868,3358.8,3358.3,3.2078]
[1735670165450,0.4354,3359.1,3358.3,3.2078]
[1735670165647,0.29811,3359.0,3358.9,0.29811]
[1735670166346,0.73547,3359.4,3359.3,0.29808]
[1735670166549,0.73547,3359.4,3358.6,1.79814344]
[1735670166550,0.29811,3359.0,3358.9,0.29811]
[1735670166759,0.29809,3359.2,3359.1,0.2981]
[1735670167049,0.29807,3359.4,3359.3,0.29807]
[1735670167244,0.29808,3359.3,3359.2,0.75938]
[1735670169753,0.29808,3359.3,3359.2,0.4613]
[1735670170254,0.29808,3359.3,3359.2,0.75939]
[1735670170751,0.29808,3359.3,3359.2,0.4613]
[1735670170951,0.74522,3359.2,3358.4,3.95145]
[1735670171148,0.29814,3358.6,3358.5,0.4568]
[1735670173255,0.4445,3358.9,3358.4,3.2078]
[1735670173456,0.29815,3358.5,3358.4,3.2078]
[1735670174349,0.29815,3358.5,3358.4,3.50596]
[1735670174755,0.29815,3358.5,3358.4,3.2078]
[1735670175255,0.29815,3358.5,3358.4,3.50596]
[1735670175458,0.29815,3358.5,3358.4,3.2078]
[1735670175753,0.29815,3358.5,3358.4,3.50596]
[1735670176148,0.4445,3358.9,3358.4,3.2078]
[1735670176358,0.29815,3358.6,3358.5,0.29814]
[1735670176553,4.1001,3359.2,3358.4,3.2078]
[1735670176861,0.29811,3358.9,3358.8,3.2078]
[1735670177049,1.79814344,3359.0,3358.4,3.2078]
[1735670177254,0.29814,3358.7,3358.6,0.29814]
[1735670177457,0.29815,3358.6,3358.5,0.29814]
[1735670177650,0.29815,3358.5,3358.4,3.50595]
[1735670178051,1.79814344,3359.0,3358.4,3.2078]
[1735670178450,0.29815,3358.5,3358.4,3.2078]
[1735670178850,0.29815,3358.5,3358.4,3.50596]
[1735670179049,0.29815,3358.5,3358.4,3.2078]
[1735670179854,0.74245,3358.5,3358.4,3.2078]
[1735670180256,0.74245,3358.5,3358.4,3.50596]
[1735670180455,0.74245,3358.5,3358.4,3.2078]
[1735670181156,0.74245,3358.5,3358.4,3.50596]
[1735670181559,0.74245,3358.5,3358.4,3.2078]
[1735670181954,0.74245,3358.5,3358.4,3.50596]
[1735670182357,0.74245,3358.5,3358.4,3.2078]
[1735670183258,0.74245,3358.5,3358.4,3.50596]
[1735670183461,0.74245,3358.5,3358.4,3.2078]
[1735670183663,0.74245,3358.5,3358.4,3.50596]
[1735670186764,0.4443,3358.5,3358.4,3.50596]
[1735670186959,2.33102721,3358.9,3358.8,0.29812]
[1735670187164,2.33102721,3358.9,3358.8,3.50592]
[1735670188265,4.97731778,3359.3,3358.8,3.50592]
[1735670188266,0.29808,3359.3,3358.8,3.50592]
[1735670188459,0.29808,3359.3,3359.2,3.50589]
[1735670188768,0.4508,3359.4,3359.3,0.29808]
[1735670189164,2.33102721,3359.7,3359.6,0.29805]
[1735670189369,2.33102721,3359.7,3359.6,3.50585]
[1735670189768,5.10441794,3359.8,3359.6,3.2078]
[1735670189967,4.86861065,3359.8,3359.7,0.29804]
[1735670190177,2.77242721,3359.8,3359.7,0.29804]
[1735670191181,2.77242721,3359.8,3359.7,0.75274]
[1735670191567,0.4414,3359.8,3359.7,0.75274]
[1735670191969,2.33102721,3360.2,3360.1,0.29801]
[1735670192163,2.33102721,3360.2,3360.1,3.50581]
[1735670193265,0.4605,3360.7,3360.1,3.2078]
[1735670193465,0.4605,3360.7,3360.6,3.50576]
[1735670194377,2.55659344,3360.7,3360.6,3.2078]
[1735670195069,2.25864344,3360.7,3360.6,3.50576]
[1735670195268,0.74479,3361.2,3360.6,3.50576]
[1735670195269,1.79814344,3361.3,3361.2,0.29791]
[1735670195468,0.445,3361.4,3361.3,0.2979]
[1735670196061,2.33102721,3361.2,3361.0,3.2078]
[1735670196268,2.62893721,3361.2,3361.0,3.50572]
[1735670196569,0.29794,3360.8,3360.7,3.2078]
[1735670196776,0.29794,3360.8,3360.7,3.50575]
[1735670197075,0.29794,3360.9,3360.8,0.29794]
[1735670197272,0.461,3361.1,3360.7,3.2078]
[1735670197468,0.29794,3360.8,3360.7,3.2078]
[1735670198476,0.4466,3360.9,3360.3,3.2078]
[1735670198674,2.09612344,3360.4,3360.3,3.2078]
[1735670199772,0.29798,3360.5,3360.4,0.29798]
[1735670200977,2.4909372,3360.7,3360.4,0.29798]
[1735670201174,2.4909372,3360.7,3360.5,0.29797]
[1735670201175,0.29797,3360.6,3360.5,0.29797]
[1735670201573,0.4499,3360.7,3360.6,0.29796]
[1735670202176,0.74785,3360.7,3360.6,0.29796]
[1735670202874,0.74454,3360.9,3360.8,0.29794]
[1735670203074,1.79814344,3361.0,3360.7,3.2078]
[1735670203373,0.4555,3361.1,3361.0,0.29793]
[1735670203871,1.79814344,3361.3,3360.7,3.95269]
[1735670204073,0.7213,3361.4,3361.3,0.2979]
[1735670204074,0.4234,3361.4,3361.3,0.2979]
[1735670204468,0.29791,3361.2,3361.1,3.2078]
[1735670204673,2.09605344,3361.2,3361.1,3.50572]
[1735670204875,2.09605344,3361.2,3361.1,3.2078]
[1735670205075,2.09605344,3361.2,3361.1,3.50572]
[1735670205781,0.29791,3361.2,3361.1,3.50572]
[1735670206278,2.09605344,3361.2,3361.1,3.2078]
[1735670206977,12.3844516,3361.2,3360.4,0.4647]
[1735670207173,0.29798,3360.4,3360.3,3.2078]
[1735670207378,0.29798,3360.4,3360.3,3.50579]
[1735670207575,1.15478,3360.4,3360.3,3.50579]
[1735670208284,0.8568,3360.4,3359.9,3.2078]
[1735670208488,0.29802,3360.0,3359.9,3.2078]
[1735670209983,0.29802,3360.0,3359.9,3.50582]
[1735670211783,0.29802,3360.0,3359.9,3.2078]
[1735670214487,0.29805,3359.6,3359.5,3.2078]
[1735670215191,0.29805,3359.6,3359.5,3.50586]
[1735670215490,0.29805,3359.6,3359.5,3.2078]
[1735670216086,0.72285,3359.7,3359.6,0.29805]
[1735670216287,0.29803,3359.9,3359.6,0.29805]
[1735670216493,0.29805,3359.7,3359.5,3.50585]
[1735670216789,0.29805,3359.7,3359.6,0.29805]
[1735670216992,0.29805,3359.6,3359.5,3.2078]
[1735670220999,1.79814344,3359.8,3359.5,3.2078]
[1735670221000,0.29805,3359.7,3359.5,3.2078]
[1735670221187,0.29802,3359.9,3359.6,0.29804]
[1735670221491,0.29802,3359.9,3359.5,3.2078]
[1735670221492,0.29802,3359.9,3359.7,0.29804]
[1735670221991,0.4456,3360.0,3359.6,0.29804]
[1735670222191,0.4456,3360.0,3359.5,3.2078]
[1735670222491,0.29805,3359.6,3359.5,3.2078]
[1735670223289,1.79814344,3359.8,3359.5,3.2078]
[1735670223497,0.29805,3359.7,3359.6,0.29805]
[1735670223793,0.29805,3359.7,3359.5,3.2078]
[1735670223794,0.29805,3359.6,3359.5,3.50586]
[1735670223994,1.79814344,3359.8,3359.5,3.2078]
[1735670224291,1.79814344,3359.8,3359.5,3.50586]
[1735670224292,0.29805,3359.6,3359.5,3.50586]
[1735670224495,0.29805,3359.7,3359.6,0.29805]
[1735670224692,0.29805,3359.7,3359.5,3.50585]
[1735670224894,0.29805,3359.6,3359.5,3.2078]
[1735670225292,0.29805,3359.6,3359.5,3.50586]
[1735670226095,0.4456,3360.0,3359.5,3.2078]
[1735670226291,0.29804,3359.8,3359.7,0.29804]
[1735670226693,0.29802,3360.0,3359.9,0.29802]
[1735670226897,0.29802,3360.0,3359.9,3.50582]
[1735670227094,0.29802,3360.0,3359.9,3.2078]
[1735670228192,0.4468,3360.5,3359.9,3.2078]
[1735670228393,0.29798,3360.4,3360.3,3.2078]
[1735670228687,0.29798,3360.4,3360.3,3.50579]
[1735670229097,0.29798,3360.4,3360.3,3.2078]
[1735670229593,2.09612344,3360.4,3360.3,3.2078]
[1735670230497,0.29802,3360.0,3359.9,3.2078]
[1735670230686,2.09616344,3360.0,3359.9,3.2078]
[1735670230895,0.29802,3360.0,3359.9,3.2078]
[1735670231391,2.23734344,3360.3,3359.9,3.2078]
[1735670231598,0.29802,3360.1,3360.0,0.29801]
[1735670232493,2.23734344,3360.3,3359.9,3.2078]
[1735670232699,0.29802,3360.0,3359.9,3.50582]
[1735670232893,0.29802,3360.0,3359.9,3.2078]
[1735670233395,0.29802,3360.0,3359.9,3.50582]
[1735670233596,0.29802,3360.0,3359.9,3.2078]
[1735670234200,0.29802,3360.0,3359.9,3.50582]
[1735670234594,0.29802,3360.0,3359.9,3.2078]
[1735670235194,0.29803,3359.8,3359.7,4.63185492]
[1735670236497,0.29804,3359.6,3359.5,3.2078]
[1735670240297,0.29805,3359.4,3359.3,4.63185492]
[1735670240498,2.09619344,3359.4,3359.3,2.92315355]
[1735670242201,0.29807,3359.2,3359.1,0.29808]
[1735670243002,0.29808,3359.1,3359.0,3.50588]
[1735670243201,0.29808,3359.1,3359.0,3.2078]
[1735670243402,2.09622344,3359.1,3359.0,3.2078]
[1735670243705,2.09622344,3359.1,3359.0,3.50589]
[1735670245506,2.76312721,3359.6,3359.0,3.2078]
[1735670245707,2.33102721,3359.6,3359.5,3.50585]
[1735670245906,2.62905721,3359.7,3359.6,0.29804]
[1735670246101,2.62905721,3359.7,3359.6,0.76314]
[1735670246314,4.42720065,3359.7,3359.6,1.20564]
[1735670246607,2.33102721,3359.7,3359.6,1.20564]
[1735670247502,0.29803,3359.7,3359.6,1.20564]
[1735670248011,0.29803,3359.7,3359.6,0.9076]
[1735670249705,2.09617344,3359.7,3359.6,0.9076]
[1735670250007,2.09617344,3359.7,3359.6,0.4425]
[1735670250512,1.79814344,3359.7,3359.3,6.90478888]
[1735670250706,2.09619344,3359.4,3359.3,4.45034898]
[1735670251010,2.09619344,3359.4,3359.3,3.84414898]
[1735670251011,11.4693923,3359.4,3359.3,3.84414898]
[1735670251209,0.29807,3359.2,3359.1,9.31692725]
[1735670251509,0.29811,3358.7,3358.6,3.2078]
[1735670252109,0.29813,3358.5,3358.4,9.31692725]
[1735670252610,0.29815,3358.3,3358.2,4.00433312]
[1735670252810,0.29815,3358.3,3357.6,16.22911552]
[1735670252811,0.29818,3357.9,3357.6,16.22911552]
[1735670253005,0.29818,3357.9,3357.5,11.65001681]
[1735670253006,0.29821,3357.6,3357.5,11.65001681]
[1735670253308,9.67504851,3357.6,3357.5,11.65001681]
[1735670254605,0.29825,3357.1,3357.0,3.2078]
[1735670254806,2.09639344,3357.1,3357.0,3.2078]
[1735670255708,0.29827,3356.9,3356.8,0.4625]
[1735670255913,0.2983,3356.6,3356.5,0.4448]
[1735670256111,0.29831,3356.5,3356.4,3.2078]
[1735670259429,0.29834,3356.1,3356.0,3.2078]
[1735670259609,0.2984,3355.5,3355.4,0.9103]
[1735670259810,2.09654344,3355.5,3355.4,0.9103]
[1735670260417,9.45719685,3355.5,3355.4,0.4549]
[1735670261917,9.15879685,3355.5,3355.4,0.4549]
[1735670262108,0.29831,3356.1,3355.8,0.29833]
[1735670262314,0.29831,3356.1,3356.0,3.2078]
[1735670262518,0.2983,3356.1,3356.0,3.2078]
[1735670262713,2.09644344,3356.1,3356.0,3.2078]
[1735670263217,1.79814344,3356.1,3356.0,3.2078]
[1735670263614,2.09644344,3356.1,3356.0,3.2078]
[1735670264219,2.04220678,3356.4,3356.0,3.2078]
[1735670264414,2.32273151,3356.6,3356.0,3.2078]
[1735670264625,0.29825,3356.8,3356.5,3.50607]
[1735670264809,7.32160901,3356.7,3356.6,0.29826]
[1735670265122,0.29823,3356.9,3356.6,0.73416]
[1735670265416,0.29819,3357.4,3357.1,0.29821]
[1735670265621,0.29818,3357.6,3357.3,3.50599]
[1735670265822,0.29819,3357.5,3357.3,3.50599]
[1735670266020,7.47399337,3357.6,3357.3,3.2078]
[1735670266221,0.29819,3357.4,3357.3,3.2078]
[1735670268729,2.32273151,3357.9,3357.3,3.506]
[1735670268923,2.62087151,3357.9,3357.8,3.2078]
[1735670269241,10.09368425,3357.9,3357.8,3.2078]
[1735670269429,10.32618404,3357.9,3357.8,3.2078]
[1735670270341,8.00345253,3357.9,3357.8,3.2078]
[1735670270517,7.77095274,3357.9,3357.8,3.2078]
[1735670270720,7.77095274,3357.9,3357.8,3.50595]
[1735670270929,0.29814,3357.9,3357.8,3.50595]
[1735670271121,0.29814,3357.9,3357.8,3.2078]
[1735670271323,0.29813,3358.1,3357.9,0.29814]
[1735670271631,7.58857646,3358.0,3357.9,0.29814]
[1735670271836,7.58857646,3358.0,3357.9,0.4342]
[1735670271837,7.88670646,3358.0,3357.9,0.4342]
[1735670274028,0.29814,3357.9,3357.8,3.2078]
[1735670274727,7.64611645,3357.9,3357.8,3.2078]
[1735670274963,7.64611645,3357.9,3357.4,3.2078]
[1735670274964,0.29818,3357.5,3357.4,3.2078]
[1735670275334,0.29818,3357.5,3357.4,3.50599]
[1735670275631,0.29818,3357.5,3357.4,3.2078]
[1735670276122,2.55767897,3358.2,3357.4,3.2078]
[1735670276123,0.23494746,3358.2,3357.4,3.2078]
[1735670276328,0.29814,3357.9,3357.8,3.50595]
[1735670277832,0.98244551,3358.4,3357.8,3.50594]
[1735670278131,7.40516537,3358.3,3358.2,3.2078]
[1735670278428,7.70327537,3358.3,3358.2,3.2078]
[1735670278829,0.29811,3358.3,3358.2,3.2078]
[1735670279229,7.73411492,3358.3,3358.2,3.2078]
[1735670282439,0.29811,3358.4,3358.3,0.2981]
[1735670282635,0.4609,3359.2,3358.3,0.4551]
[1735670282937,7.71276387,3358.9,3358.8,0.29806]
[1735670283135,0.29806,3358.9,3358.8,3.50586]
[1735670283637,0.29806,3358.9,3358.8,3.2078]
[1735670283849,0.23245907,3359.4,3358.8,3.2078]
[1735670284035,0.29802,3359.3,3359.2,3.2078]
[1735670287438,7.57385573,3359.4,3359.2,3.2078]
[1735670287638,0.29798,3359.8,3359.7,0.29798]
[1735670287841,0.29798,3359.8,3359.7,3.50578]
[1735670288243,0.29798,3359.8,3359.7,3.2078]
[1735670288644,0.29798,3359.8,3359.7,3.50578]
[1735670288839,0.29798,3359.8,3359.7,3.2078]
[1735670289035,0.29798,3359.8,3359.7,3.50578]
[1735670289239,0.29798,3359.8,3359.7,3.2078]
[1735670289440,0.23764844,3360.2,3359.7,3.2078]
[1735670289644,0.29797,3359.9,3359.8,0.29796]
[1735670289837,7.41320674,3360.0,3359.7,3.2078]
[1735670290042,0.29797,3359.9,3359.8,0.29797]
[1735670290245,7.50581583,3360.3,3360.2,0.29794]
[1735670290542,3.94352833,3360.8,3360.2,3.2078]
[1735670290543,0.4341,3360.8,3360.2,3.2078]
[1735670290846,0.73199,3360.8,3360.7,3.2078]
[1735670291245,8.22406061,3360.8,3360.7,3.2078]
[1735670294144,0.29792,3360.4,3360.3,3.2078]
[1735670294448,0.29792,3360.4,3359.6,2.186]
[1735670294449,0.29797,3359.9,3359.8,3.2078]
[1735670294852,0.29797,3359.9,3359.8,3.50577]
[1735670295152,0.29797,3359.9,3359.8,3.2078]
[1735670295748,0.29797,3359.9,3359.8,3.50577]
[1735670296252,0.29797,3359.9,3359.8,3.2078]
[1735670296552,0.29796,3360.0,3359.9,0.29796]
[1735670296945,0.29795,3360.1,3360.0,0.29795]
[1735670297348,1.79965211,3360.2,3359.8,3.2078]
[1735670297553,2.09762211,3359.9,3359.8,3.2078]
[1735670297748,2.09762211,3359.9,3359.0,0.8988]
[1735670297749,0.29804,3359.1,3359.0,0.8988]
[1735670298154,0.29804,3359.1,3359.0,0.4624]
[1735670298854,1.79965211,3359.6,3359.0,0.4624]
[1735670299150,0.298,3359.5,3359.4,3.2078]